[Event "Late-Titled-Tuesday-Blitz-February-27-2024"]
[Site "Chess.com"]
[Date "2024.02.27"]
[Round "10"]
[White "MiguelEduardoGB"]
[Black "rhwr"]
[Result "0-1"]
[WhiteElo "2161"]
[BlackElo "2332"]
[TimeControl "180+1"]
[EndTime "15:53:25 PST"]
[Termination "rhwr won by resignation"]

1. e4 {[%clk 0:02:57.1]} 1... c5 {[%clk 0:02:58.7]} 2. Nc3 {[%clk 0:02:57.1]}
2... Nc6 {[%clk 0:02:58.5]} 3. Bc4 {[%clk 0:02:57.4]} 3... e6 {[%clk 0:02:57.9]}
4. a3 {[%clk 0:02:57.4]} 4... d6 {[%clk 0:02:56.7]} 5. d3 {[%clk 0:02:56.7]}
5... Nf6 {[%clk 0:02:56.6]} 6. Ba2 {[%clk 0:02:56.8]} 6... Be7 {[%clk
0:02:57.2]} 7. f4 {[%clk 0:02:57]} 7... O-O {[%clk 0:02:57.7]} 8. Nf3 {[%clk
0:02:57.4]} 8... a6 {[%clk 0:02:56.2]} 9. O-O {[%clk 0:02:57.5]} 9... b5 {[%clk
0:02:56.1]} 10. Qe1 {[%clk 0:02:57.9]} 10... Nd4 {[%clk 0:02:54]} 11. Nxd4
{[%clk 0:02:57.6]} 11... cxd4 {[%clk 0:02:54.9]} 12. Ne2 {[%clk 0:02:58.2]}
12... e5 {[%clk 0:02:51.9]} 13. f5 {[%clk 0:02:57.3]} 13... Bb7 {[%clk
0:02:49.1]} 14. Rf3 {[%clk 0:02:46.7]} 14... d5 {[%clk 0:02:47]} 15. Rh3 {[%clk
0:02:42.8]} 15... dxe4 {[%clk 0:02:42.5]} 16. dxe4 {[%clk 0:02:31.4]} 16... Bxe4
{[%clk 0:02:41.1]} 17. Qh4 {[%clk 0:02:30.8]} 17... Bxf5 {[%clk 0:02:39.3]} 18.
Rf3 {[%clk 0:02:22.6]} 18... Bg6 {[%clk 0:02:38.3]} 19. Bg5 {[%clk 0:02:09]}
19... e4 {[%clk 0:02:37.5]} 20. Rg3 {[%clk 0:02:03.6]} 20... d3 {[%clk
0:02:36.4]} 21. Nf4 {[%clk 0:02:00.3]} 21... dxc2 {[%clk 0:02:30.9]} 22. Nxg6
{[%clk 0:01:49.9]} 22... hxg6 {[%clk 0:02:26.6]} 23. Be3 {[%clk 0:00:26.9]}
23... Qd1+ {[%clk 0:02:21.2]} 24. Kf2 {[%clk 0:00:27.2]} 24... Qxa1 {[%clk
0:02:16.9]} 25. Rh3 {[%clk 0:00:27.1]} 25... Nh5 {[%clk 0:02:09]} 26. Qxe7
{[%clk 0:00:20]} 26... Qxa2 {[%clk 0:02:06.5]} 0-1

[Event "Late-Titled-Tuesday-Blitz-February-27-2024"]
[Site "Chess.com"]
[Date "2024.02.27"]
[Round "10"]
[White "WPWPWP-2015"]
[Black "Kgutierrez95"]
[Result "1-0"]
[WhiteElo "2449"]
[BlackElo "2228"]
[TimeControl "180+1"]
[EndTime "15:53:41 PST"]
[Termination "WPWPWP-2015 won by resignation"]

1. e4 {[%clk 0:02:58.5]} 1... c6 {[%clk 0:02:52.7]} 2. d4 {[%clk 0:02:57.7]}
2... d5 {[%clk 0:02:51.5]} 3. Nc3 {[%clk 0:02:56.8]} 3... dxe4 {[%clk
0:02:51.2]} 4. Nxe4 {[%clk 0:02:57.7]} 4... Bf5 {[%clk 0:02:51.7]} 5. Ng3 {[%clk
0:02:57.7]} 5... Bg6 {[%clk 0:02:51.8]} 6. h4 {[%clk 0:02:57.4]} 6... h6 {[%clk
0:02:51.2]} 7. Nf3 {[%clk 0:02:52.1]} 7... Nd7 {[%clk 0:02:51.4]} 8. h5 {[%clk
0:02:51.3]} 8... Bh7 {[%clk 0:02:51.9]} 9. Bd3 {[%clk 0:02:51.9]} 9... Bxd3
{[%clk 0:02:50.7]} 10. Qxd3 {[%clk 0:02:52.8]} 10... e6 {[%clk 0:02:51.2]} 11.
Bd2 {[%clk 0:02:52.3]} 11... Ngf6 {[%clk 0:02:50.6]} 12. O-O-O {[%clk
0:02:51.9]} 12... Be7 {[%clk 0:02:50.6]} 13. Kb1 {[%clk 0:02:52]} 13... O-O
{[%clk 0:02:50.1]} 14. Ne4 {[%clk 0:02:51.7]} 14... Nxe4 {[%clk 0:02:49.7]} 15.
Qxe4 {[%clk 0:02:52]} 15... Nf6 {[%clk 0:02:50.4]} 16. Qe2 {[%clk 0:02:52.1]}
16... Qd5 {[%clk 0:02:51]} 17. g4 {[%clk 0:02:46.2]} 17... Qe4 {[%clk
0:02:39.9]} 18. Qxe4 {[%clk 0:02:34.7]} 18... Nxe4 {[%clk 0:02:40.3]} 19. Be3
{[%clk 0:02:35]} 19... f5 {[%clk 0:02:32.5]} 20. gxf5 {[%clk 0:02:22.7]} 20...
exf5 {[%clk 0:02:33.2]} 21. Rdf1 {[%clk 0:02:14.5]} 21... f4 {[%clk 0:02:27.2]}
22. Bc1 {[%clk 0:02:13.7]} 22... Bd6 {[%clk 0:02:22.7]} 23. c3 {[%clk
0:02:08.9]} 23... Rae8 {[%clk 0:02:20.6]} 24. Kc2 {[%clk 0:02:08.5]} 24... Rf5
{[%clk 0:02:05]} 25. Rh2 {[%clk 0:01:58.3]} 25... Nf6 {[%clk 0:02:00.7]} 26.
Rfh1 {[%clk 0:01:40.1]} 26... Ng4 {[%clk 0:01:53.9]} 27. Rg2 {[%clk 0:01:39.2]}
27... Re2+ {[%clk 0:01:53]} 28. Kd3 {[%clk 0:01:35.8]} 28... Rxf2 {[%clk
0:01:52.9]} 29. Rxg4 {[%clk 0:01:34.8]} 29... Rxf3+ {[%clk 0:01:51.9]} 30. Ke4
{[%clk 0:01:34.9]} 30... Rxh5 {[%clk 0:01:18.7]} 31. Rxh5 {[%clk 0:01:30.3]}
31... Rf1 {[%clk 0:01:18.7]} 32. Bxf4 {[%clk 0:01:25.2]} 32... Bxf4 {[%clk
0:01:02]} 33. Rxf4 {[%clk 0:01:24.4]} 1-0

[Event "Late-Titled-Tuesday-Blitz-February-27-2024"]
[Site "Chess.com"]
[Date "2024.02.27"]
[Round "10"]
[White "lucasmito"]
[Black "Brahianzevich"]
[Result "1-0"]
[WhiteElo "2810"]
[BlackElo "2504"]
[TimeControl "180+1"]
[EndTime "15:53:57 PST"]
[Termination "lucasmito won by resignation"]

1. e4 {[%clk 0:03:00.9]} 1... c5 {[%clk 0:02:52.1]} 2. Nf3 {[%clk 0:03:00.4]}
2... d6 {[%clk 0:02:52.1]} 3. Nc3 {[%clk 0:03:01.3]} 3... Nf6 {[%clk 0:02:43.7]}
4. d4 {[%clk 0:03:01.7]} 4... cxd4 {[%clk 0:02:42.8]} 5. Nxd4 {[%clk 0:03:02.6]}
5... a6 {[%clk 0:02:43.3]} 6. Be3 {[%clk 0:03:03]} 6... Ng4 {[%clk 0:02:39.4]}
7. Bc1 {[%clk 0:02:58.7]} 7... Nf6 {[%clk 0:02:39.3]} 8. f3 {[%clk 0:02:58]}
8... e5 {[%clk 0:02:39.2]} 9. Nb3 {[%clk 0:02:58.2]} 9... Be6 {[%clk 0:02:39.7]}
10. Be3 {[%clk 0:02:58.6]} 10... Be7 {[%clk 0:02:40]} 11. Qd2 {[%clk 0:02:58.8]}
11... O-O {[%clk 0:02:39.6]} 12. O-O-O {[%clk 0:02:57.3]} 12... Nbd7 {[%clk
0:02:39.6]} 13. Kb1 {[%clk 0:02:56.2]} 13... b5 {[%clk 0:02:39.6]} 14. Nd5
{[%clk 0:02:56.4]} 14... Bxd5 {[%clk 0:02:36.4]} 15. exd5 {[%clk 0:02:57.3]}
15... Nb6 {[%clk 0:02:36.9]} 16. Bxb6 {[%clk 0:02:57.1]} 16... Qxb6 {[%clk
0:02:36.7]} 17. Na5 {[%clk 0:02:58]} 17... Rfc8 {[%clk 0:02:24.7]} 18. Bd3
{[%clk 0:02:54.8]} 18... Bf8 {[%clk 0:02:07.4]} 19. Be4 {[%clk 0:02:45.5]} 19...
b4 {[%clk 0:01:57.3]} 20. Nc6 {[%clk 0:02:45.2]} 20... a5 {[%clk 0:01:57.8]} 21.
g4 {[%clk 0:02:45.6]} 21... a4 {[%clk 0:01:47.7]} 22. g5 {[%clk 0:02:32.3]}
22... Nxe4 {[%clk 0:01:46.4]} 23. fxe4 {[%clk 0:02:33.2]} 23... b3 {[%clk
0:01:46.1]} 24. cxb3 {[%clk 0:02:30.1]} 24... axb3 {[%clk 0:01:46.1]} 25. a3
{[%clk 0:02:30.8]} 25... Ra4 {[%clk 0:01:46.2]} 26. Rhe1 {[%clk 0:02:22]} 26...
Rxc6 {[%clk 0:01:37.9]} 27. dxc6 {[%clk 0:02:21.7]} 27... Qxc6 {[%clk
0:01:38.8]} 28. Rc1 {[%clk 0:02:17.6]} 28... Qa6 {[%clk 0:01:34.8]} 29. Qd5
{[%clk 0:02:08]} 29... Ra5 {[%clk 0:01:15.9]} 30. Qc4 {[%clk 0:01:24.8]} 30...
Qb6 {[%clk 0:01:05.6]} 31. Rf1 {[%clk 0:01:21.1]} 31... Ra7 {[%clk 0:01:02.1]}
32. Rc3 {[%clk 0:01:21]} 32... Rb7 {[%clk 0:00:58.8]} 33. Rcf3 {[%clk
0:01:21.2]} 33... Rc7 {[%clk 0:00:52.3]} 34. Rxf7 {[%clk 0:01:20.6]} 1-0

[Event "Late-Titled-Tuesday-Blitz-February-27-2024"]
[Site "Chess.com"]
[Date "2024.02.27"]
[Round "10"]
[White "toninhojit"]
[Black "Malev212"]
[Result "0-1"]
[WhiteElo "2472"]
[BlackElo "2645"]
[TimeControl "180+1"]
[EndTime "15:54:02 PST"]
[Termination "Malev212 won by resignation"]

1. d4 {[%clk 0:03:00.9]} 1... g6 {[%clk 0:02:53.4]} 2. e4 {[%clk 0:03:00]} 2...
Bg7 {[%clk 0:02:51]} 3. Nc3 {[%clk 0:03:00.4]} 3... c5 {[%clk 0:02:50.2]} 4. d5
{[%clk 0:02:59.3]} 4... d6 {[%clk 0:02:49.2]} 5. f4 {[%clk 0:02:56.9]} 5... Nf6
{[%clk 0:02:45.9]} 6. Bb5+ {[%clk 0:02:53.9]} 6... Nfd7 {[%clk 0:02:41.6]} 7. a4
{[%clk 0:02:50.2]} 7... O-O {[%clk 0:02:40.9]} 8. Nf3 {[%clk 0:02:50.1]} 8...
Na6 {[%clk 0:02:38.2]} 9. O-O {[%clk 0:02:49.2]} 9... Nc7 {[%clk 0:02:37.9]} 10.
Bd3 {[%clk 0:02:47.9]} 10... a6 {[%clk 0:02:33.8]} 11. f5 {[%clk 0:02:47.7]}
11... Rb8 {[%clk 0:02:33]} 12. a5 {[%clk 0:02:43.1]} 12... b5 {[%clk 0:02:22.6]}
13. axb6 {[%clk 0:02:44]} 13... Nxb6 {[%clk 0:02:21]} 14. Qe1 {[%clk 0:02:43.9]}
14... c4 {[%clk 0:02:16.2]} 15. Be2 {[%clk 0:02:44]} 15... gxf5 {[%clk
0:02:16.4]} 16. Qh4 {[%clk 0:02:29.6]} 16... e5 {[%clk 0:01:57.4]} 17. Qh5
{[%clk 0:01:48.6]} 17... f4 {[%clk 0:01:37.8]} 18. g3 {[%clk 0:01:33.7]} 18...
f5 {[%clk 0:01:22.7]} 19. gxf4 {[%clk 0:01:33.4]} 19... fxe4 {[%clk 0:01:22]}
20. Ng5 {[%clk 0:01:25.8]} 20... Bf5 {[%clk 0:01:12.4]} 21. Bg4 {[%clk 0:01:24]}
21... Bg6 {[%clk 0:01:10.2]} 22. Qh3 {[%clk 0:01:23.6]} 22... exf4 {[%clk
0:01:05.6]} 23. Bxf4 {[%clk 0:01:15.8]} 23... Rxf4 {[%clk 0:01:04.8]} 24. Be6+
{[%clk 0:01:01.5]} 24... Nxe6 {[%clk 0:00:53.2]} 25. Qxe6+ {[%clk 0:01:01.1]}
25... Kh8 {[%clk 0:00:52]} 26. Nf7+ {[%clk 0:00:54.4]} 26... Bxf7 {[%clk
0:00:50.2]} 0-1

[Event "Late-Titled-Tuesday-Blitz-February-27-2024"]
[Site "Chess.com"]
[Date "2024.02.27"]
[Round "10"]
[White "GHANDEEVAM2003"]
[Black "Fandorine"]
[Result "1-0"]
[WhiteElo "3064"]
[BlackElo "2925"]
[TimeControl "180+1"]
[EndTime "15:54:17 PST"]
[Termination "GHANDEEVAM2003 won by resignation"]

1. c4 {[%clk 0:03:00.9]} 1... Nf6 {[%clk 0:02:59.1]} 2. Nc3 {[%clk 0:03:01.3]}
2... g6 {[%clk 0:02:57.4]} 3. e4 {[%clk 0:03:01.5]} 3... d6 {[%clk 0:02:57.6]}
4. d4 {[%clk 0:03:01.7]} 4... Bg7 {[%clk 0:02:58.3]} 5. Be2 {[%clk 0:03:02.3]}
5... O-O {[%clk 0:02:58.3]} 6. Bg5 {[%clk 0:03:03]} 6... c5 {[%clk 0:02:56.8]}
7. d5 {[%clk 0:03:02.8]} 7... e6 {[%clk 0:02:55.6]} 8. Nf3 {[%clk 0:03:02.5]}
8... exd5 {[%clk 0:02:51.9]} 9. cxd5 {[%clk 0:03:03.4]} 9... Bg4 {[%clk
0:02:49.7]} 10. Nd2 {[%clk 0:03:03.3]} 10... Bxe2 {[%clk 0:02:48.4]} 11. Qxe2
{[%clk 0:03:04.2]} 11... Re8 {[%clk 0:02:47.6]} 12. O-O {[%clk 0:03:01.6]} 12...
Na6 {[%clk 0:02:38.3]} 13. f4 {[%clk 0:02:57.6]} 13... Qd7 {[%clk 0:02:11.5]}
14. Rad1 {[%clk 0:02:43.3]} 14... Nxe4 {[%clk 0:01:51.7]} 15. Ncxe4 {[%clk
0:02:31.7]} 15... f5 {[%clk 0:01:51.5]} 16. Qf3 {[%clk 0:02:27.7]} 16... fxe4
{[%clk 0:01:50.3]} 17. Nxe4 {[%clk 0:02:28.6]} 17... Rf8 {[%clk 0:01:38.3]} 18.
b3 {[%clk 0:02:08.1]} 18... Rae8 {[%clk 0:01:32.2]} 19. Rfe1 {[%clk 0:02:06.4]}
19... Nb4 {[%clk 0:01:30.3]} 20. Re2 {[%clk 0:02:06.5]} 20... h6 {[%clk
0:01:21.4]} 21. Bh4 {[%clk 0:02:06.5]} 21... g5 {[%clk 0:01:00.6]} 22. Bg3
{[%clk 0:02:06.5]} 22... g4 {[%clk 0:00:47.8]} 23. Qf2 {[%clk 0:01:57.5]} 23...
Nxa2 {[%clk 0:00:39.2]} 24. f5 {[%clk 0:01:33.1]} 24... Rxf5 {[%clk 0:00:32.8]}
25. Qe1 {[%clk 0:01:32.9]} 25... Rxe4 {[%clk 0:00:05.3]} 26. Rxe4 {[%clk
0:01:32.5]} 26... Nc3 {[%clk 0:00:06]} 27. Re7 {[%clk 0:01:26.1]} 1-0

[Event "Late-Titled-Tuesday-Blitz-February-27-2024"]
[Site "Chess.com"]
[Date "2024.02.27"]
[Round "10"]
[White "Adar_07"]
[Black "vugarrasulov"]
[Result "1-0"]
[WhiteElo "2817"]
[BlackElo "2981"]
[TimeControl "180+1"]
[EndTime "15:54:18 PST"]
[Termination "Adar_07 won by checkmate"]

1. e4 {[%clk 0:03:00.9]} 1... e5 {[%clk 0:02:59.8]} 2. Nf3 {[%clk 0:03:00.7]}
2... Qe7 {[%clk 0:03:00.4]} 3. Nc3 {[%clk 0:02:57.8]} 3... c6 {[%clk 0:03:00.5]}
4. Bc4 {[%clk 0:02:57.6]} 4... d6 {[%clk 0:02:59.8]} 5. d4 {[%clk 0:02:55.7]}
5... h6 {[%clk 0:02:59.6]} 6. Be3 {[%clk 0:02:53.5]} 6... Nf6 {[%clk 0:02:59.5]}
7. dxe5 {[%clk 0:02:48.4]} 7... dxe5 {[%clk 0:02:59.4]} 8. h3 {[%clk 0:02:43.1]}
8... Qc7 {[%clk 0:02:54.2]} 9. Qd3 {[%clk 0:02:39.2]} 9... Nbd7 {[%clk
0:02:47.2]} 10. O-O-O {[%clk 0:02:00.4]} 10... Be7 {[%clk 0:02:46.1]} 11. Nh4
{[%clk 0:01:57.2]} 11... g6 {[%clk 0:02:19.5]} 12. Rhf1 {[%clk 0:01:37.9]} 12...
b5 {[%clk 0:02:05.6]} 13. Bb3 {[%clk 0:01:33.3]} 13... a5 {[%clk 0:01:58.2]} 14.
a4 {[%clk 0:01:31.6]} 14... b4 {[%clk 0:01:56.9]} 15. Qc4 {[%clk 0:01:20.5]}
15... Rf8 {[%clk 0:01:45.6]} 16. Nb5 {[%clk 0:01:17.4]} 16... Qb7 {[%clk
0:01:16.4]} 17. Nd6+ {[%clk 0:01:17]} 17... Bxd6 {[%clk 0:01:17.1]} 18. Rxd6
{[%clk 0:01:17.7]} 18... Qa6 {[%clk 0:01:08.7]} 19. Qxa6 {[%clk 0:00:46]} 19...
Bxa6 {[%clk 0:01:09.6]} 20. Rfd1 {[%clk 0:00:46.2]} 20... Bb7 {[%clk 0:00:59.5]}
21. Bxh6 {[%clk 0:00:37.4]} 21... Rh8 {[%clk 0:00:54.3]} 22. Bg5 {[%clk
0:00:27.9]} 22... Nxe4 {[%clk 0:00:54.5]} 23. Bxf7+ {[%clk 0:00:27.7]} 23...
Kxf7 {[%clk 0:00:52.8]} 24. Rxd7+ {[%clk 0:00:28.3]} 24... Ke6 {[%clk
0:00:53.5]} 25. Re7# {[%clk 0:00:28.1]} 1-0

[Event "Late-Titled-Tuesday-Blitz-February-27-2024"]
[Site "Chess.com"]
[Date "2024.02.27"]
[Round "10"]
[White "mac0504"]
[Black "Sargsyan_Shant"]
[Result "0-1"]
[WhiteElo "2713"]
[BlackElo "2919"]
[TimeControl "180+1"]
[EndTime "15:54:28 PST"]
[Termination "Sargsyan_Shant won by resignation"]

1. c4 {[%clk 0:03:00.9]} 1... c6 {[%clk 0:02:57.3]} 2. b3 {[%clk 0:03:00.4]}
2... d5 {[%clk 0:02:57.7]} 3. Bb2 {[%clk 0:03:00.9]} 3... Nf6 {[%clk 0:02:58.1]}
4. e3 {[%clk 0:03:01.1]} 4... Bg4 {[%clk 0:02:58.4]} 5. Be2 {[%clk 0:02:59.8]}
5... Bxe2 {[%clk 0:02:57.8]} 6. Nxe2 {[%clk 0:03:00.4]} 6... Nbd7 {[%clk
0:02:57.9]} 7. O-O {[%clk 0:02:59]} 7... e6 {[%clk 0:02:57.1]} 8. d3 {[%clk
0:02:55.8]} 8... Bd6 {[%clk 0:02:57.4]} 9. Nd2 {[%clk 0:02:55.8]} 9... O-O
{[%clk 0:02:57.8]} 10. h3 {[%clk 0:02:52.2]} 10... a5 {[%clk 0:02:58.1]} 11. a3
{[%clk 0:02:48.9]} 11... Re8 {[%clk 0:02:58.5]} 12. e4 {[%clk 0:02:46]} 12...
dxe4 {[%clk 0:02:55]} 13. Nxe4 {[%clk 0:02:44.3]} 13... Bc7 {[%clk 0:02:25.6]}
14. Qc2 {[%clk 0:02:40.3]} 14... e5 {[%clk 0:02:20.1]} 15. Rad1 {[%clk
0:02:38.5]} 15... Qe7 {[%clk 0:02:17.5]} 16. N2g3 {[%clk 0:02:38.6]} 16... Nxe4
{[%clk 0:02:14.6]} 17. dxe4 {[%clk 0:02:39.5]} 17... g6 {[%clk 0:02:14]} 18. Rd2
{[%clk 0:02:19.7]} 18... Nc5 {[%clk 0:02:13.7]} 19. Bc3 {[%clk 0:02:04]} 19...
Ne6 {[%clk 0:02:11.2]} 20. b4 {[%clk 0:01:58.9]} 20... axb4 {[%clk 0:02:12.1]}
21. axb4 {[%clk 0:01:59.4]} 21... h5 {[%clk 0:02:12.6]} 22. Rfd1 {[%clk
0:01:54.7]} 22... Qg5 {[%clk 0:02:06]} 23. Rd7 {[%clk 0:01:46.6]} 23... Rad8
{[%clk 0:02:04.9]} 24. Rxd8 {[%clk 0:01:40.1]} 24... Rxd8 {[%clk 0:02:02.1]} 25.
Rxd8+ {[%clk 0:01:39.9]} 25... Qxd8 {[%clk 0:02:02.2]} 26. Qd2 {[%clk
0:01:33.8]} 26... Qe7 {[%clk 0:02:00.7]} 27. c5 {[%clk 0:01:20.3]} 27... h4
{[%clk 0:01:52.9]} 28. Ne2 {[%clk 0:01:20.4]} 28... Ng5 {[%clk 0:01:47.4]} 29.
Qd3 {[%clk 0:01:16.9]} 29... b6 {[%clk 0:01:43.7]} 30. cxb6 {[%clk 0:00:43.5]}
30... Bxb6 {[%clk 0:01:44.6]} 31. Qa6 {[%clk 0:00:43.5]} 31... Qd8 {[%clk
0:01:38.4]} 32. Bxe5 {[%clk 0:00:25.2]} 32... Nxe4 {[%clk 0:01:37.4]} 33. Nf4
{[%clk 0:00:10.3]} 33... Bxf2+ {[%clk 0:01:34.8]} 34. Kh2 {[%clk 0:00:07.5]}
34... Bg3+ {[%clk 0:01:34.9]} 35. Kg1 {[%clk 0:00:08]} 35... Qd1+ {[%clk
0:01:35.7]} 36. Qf1 {[%clk 0:00:08.3]} 36... Bf2+ {[%clk 0:01:36.2]} 0-1

[Event "Late-Titled-Tuesday-Blitz-February-27-2024"]
[Site "Chess.com"]
[Date "2024.02.27"]
[Round "10"]
[White "lamomiajunior"]
[Black "Maikrosoft63"]
[Result "1-0"]
[WhiteElo "2738"]
[BlackElo "2616"]
[TimeControl "180+1"]
[EndTime "15:54:49 PST"]
[Termination "lamomiajunior won by resignation"]

1. d4 {[%clk 0:03:00.9]} 1... Nf6 {[%clk 0:02:56.2]} 2. Nc3 {[%clk 0:03:00.9]}
2... d5 {[%clk 0:02:56]} 3. Bf4 {[%clk 0:03:01.4]} 3... a6 {[%clk 0:02:55.9]} 4.
e3 {[%clk 0:03:01.6]} 4... e6 {[%clk 0:02:55.6]} 5. g4 {[%clk 0:03:01.4]} 5...
c5 {[%clk 0:02:55.8]} 6. g5 {[%clk 0:03:01.3]} 6... Nfd7 {[%clk 0:02:54.8]} 7.
Nf3 {[%clk 0:03:01.8]} 7... Nc6 {[%clk 0:02:54.7]} 8. Bg2 {[%clk 0:03:01.3]}
8... b5 {[%clk 0:02:54.5]} 9. e4 {[%clk 0:03:01.6]} 9... Nb6 {[%clk 0:02:50.3]}
10. dxc5 {[%clk 0:02:51.2]} 10... Bxc5 {[%clk 0:02:48.8]} 11. Qe2 {[%clk
0:02:49.5]} 11... O-O {[%clk 0:02:33.3]} 12. h4 {[%clk 0:02:45.9]} 12... b4
{[%clk 0:02:30.8]} 13. Nb1 {[%clk 0:02:44.2]} 13... dxe4 {[%clk 0:02:24.2]} 14.
Qxe4 {[%clk 0:02:42.6]} 14... Bb7 {[%clk 0:02:24]} 15. Nbd2 {[%clk 0:02:38.3]}
15... Na5 {[%clk 0:01:56.2]} 16. Qe2 {[%clk 0:02:36.2]} 16... Bd5 {[%clk
0:01:43.7]} 17. h5 {[%clk 0:02:34.4]} 17... Nac4 {[%clk 0:01:38.3]} 18. h6
{[%clk 0:02:31.1]} 18... Nxd2 {[%clk 0:01:36.9]} 19. Qxd2 {[%clk 0:02:22.7]}
19... Nc4 {[%clk 0:01:30.3]} 20. Qe2 {[%clk 0:02:21.2]} 20... g6 {[%clk
0:01:16.1]} 21. b3 {[%clk 0:02:18.6]} 21... Nd6 {[%clk 0:01:05.4]} 22. O-O
{[%clk 0:02:13.2]} 22... Nf5 {[%clk 0:01:00.7]} 23. Rad1 {[%clk 0:02:08.8]}
23... Qb6 {[%clk 0:00:48.6]} 24. Be5 {[%clk 0:01:55.1]} 24... Rad8 {[%clk
0:00:42.2]} 25. Bf6 {[%clk 0:01:52.4]} 25... Rd7 {[%clk 0:00:38]} 26. Ne5 {[%clk
0:01:51.3]} 26... Rd6 {[%clk 0:00:37.4]} 27. Bxd5 {[%clk 0:01:51]} 27... exd5
{[%clk 0:00:33.1]} 28. Ng4 {[%clk 0:01:51.1]} 28... Re6 {[%clk 0:00:24.1]} 29.
Qf3 {[%clk 0:01:48.7]} 29... Bd4 {[%clk 0:00:06.2]} 30. Bxd4 {[%clk 0:01:41.7]}
30... Nxd4 {[%clk 0:00:07.1]} 31. Nf6+ {[%clk 0:01:39.4]} 31... Kh8 {[%clk
0:00:07]} 32. Qxd5 {[%clk 0:01:38.8]} 32... Ne2+ {[%clk 0:00:06.1]} 33. Kh2
{[%clk 0:01:39]} 33... Rxf6 {[%clk 0:00:03.7]} 34. Qe5 {[%clk 0:01:35.1]} 34...
Nf4 {[%clk 0:00:01.4]} 35. Qxf6+ {[%clk 0:01:32]} 35... Qxf6 {[%clk 0:00:01.8]}
36. gxf6 {[%clk 0:01:32.9]} 36... Re8 {[%clk 0:00:01.9]} 37. Rd6 {[%clk
0:01:32.4]} 37... Nh5 {[%clk 0:00:02.1]} 38. Rfd1 {[%clk 0:01:32.6]} 38... Kg8
{[%clk 0:00:01.8]} 39. Rxa6 {[%clk 0:01:32.4]} 39... Kf8 {[%clk 0:00:01.6]} 40.
Rd7 {[%clk 0:01:32.2]} 40... Rc8 {[%clk 0:00:01.7]} 41. Raa7 {[%clk 0:01:31.9]}
41... Ke8 {[%clk 0:00:01.7]} 42. Re7+ {[%clk 0:01:32.2]} 1-0

[Event "Late-Titled-Tuesday-Blitz-February-27-2024"]
[Site "Chess.com"]
[Date "2024.02.27"]
[Round "10"]
[White "Msb2"]
[Black "Polish_fighter3000"]
[Result "0-1"]
[WhiteElo "3032"]
[BlackElo "3116"]
[TimeControl "180+1"]
[EndTime "15:54:55 PST"]
[Termination "Polish_fighter3000 won by checkmate"]

1. d4 {[%clk 0:03:00.9]} 1... d5 {[%clk 0:02:57.6]} 2. c4 {[%clk 0:03:01.4]}
2... dxc4 {[%clk 0:02:57.9]} 3. e4 {[%clk 0:03:01.6]} 3... Nf6 {[%clk
0:02:56.4]} 4. e5 {[%clk 0:03:02]} 4... Nd5 {[%clk 0:02:56.8]} 5. Bxc4 {[%clk
0:03:02.7]} 5... Nb6 {[%clk 0:02:57.1]} 6. Bd3 {[%clk 0:03:03.2]} 6... Nc6
{[%clk 0:02:56.8]} 7. Be3 {[%clk 0:03:03.9]} 7... Nb4 {[%clk 0:02:54.7]} 8. Be4
{[%clk 0:03:04.2]} 8... f5 {[%clk 0:02:53.7]} 9. a3 {[%clk 0:03:04.6]} 9... N4d5
{[%clk 0:02:53.9]} 10. Bxd5 {[%clk 0:03:04.6]} 10... Nxd5 {[%clk 0:02:54.8]} 11.
Nc3 {[%clk 0:03:05.2]} 11... e6 {[%clk 0:02:47.3]} 12. Nge2 {[%clk 0:03:00.8]}
12... c6 {[%clk 0:02:43.6]} 13. h4 {[%clk 0:02:59.7]} 13... Be7 {[%clk
0:02:42.8]} 14. g3 {[%clk 0:02:56.6]} 14... O-O {[%clk 0:02:40.2]} 15. Nf4
{[%clk 0:02:49.1]} 15... Nxf4 {[%clk 0:02:28.5]} 16. Bxf4 {[%clk 0:02:50]} 16...
b6 {[%clk 0:02:28.7]} 17. O-O {[%clk 0:02:38.6]} 17... Ba6 {[%clk 0:02:25.3]}
18. Re1 {[%clk 0:02:38.7]} 18... Qd7 {[%clk 0:02:20.1]} 19. Rc1 {[%clk 0:02:37]}
19... h6 {[%clk 0:02:14.4]} 20. Qa4 {[%clk 0:02:32.5]} 20... Bb7 {[%clk
0:02:12.6]} 21. d5 {[%clk 0:02:29.8]} 21... exd5 {[%clk 0:02:10.5]} 22. e6
{[%clk 0:02:30.7]} 22... Qe8 {[%clk 0:02:09.2]} 23. Rcd1 {[%clk 0:02:23.1]}
23... Kh7 {[%clk 0:02:00.5]} 24. Be5 {[%clk 0:02:20.3]} 24... b5 {[%clk
0:01:43.3]} 25. Qc2 {[%clk 0:02:18]} 25... a5 {[%clk 0:01:39.7]} 26. Ne2 {[%clk
0:01:47.6]} 26... c5 {[%clk 0:01:38.5]} 27. b4 {[%clk 0:01:29.7]} 27... axb4
{[%clk 0:01:38.1]} 28. axb4 {[%clk 0:01:30.6]} 28... d4 {[%clk 0:01:38.6]} 29.
Kh2 {[%clk 0:01:14.2]} 29... Qc6 {[%clk 0:01:34.6]} 30. Nf4 {[%clk 0:00:58.5]}
30... g5 {[%clk 0:01:33]} 31. hxg5 {[%clk 0:00:56.7]} 31... hxg5 {[%clk
0:01:23.7]} 32. Rh1 {[%clk 0:00:43.9]} 32... gxf4 {[%clk 0:01:19.1]} 33. Rdg1
{[%clk 0:00:44.5]} 33... Ra1 {[%clk 0:01:04]} 34. f3 {[%clk 0:00:21.7]} 34...
Qxf3 {[%clk 0:01:02]} 35. gxf4 {[%clk 0:00:10.2]} 35... Qxh1+ {[%clk 0:00:58.3]}
36. Rxh1 {[%clk 0:00:11.1]} 36... Rxh1+ {[%clk 0:00:58.4]} 37. Kg3 {[%clk
0:00:12]} 37... Bh4# {[%clk 0:00:58.2]} 0-1